fUSD/lending_fUSD_20251011
["ID","MTS","AMOUNT","RATE_DAILY","PERIOD"]
[390856181,1760179840951,-1517.64,0.000153,2]
[390856183,1760179840960,-854.98838,0.0001533,2]
[390856185,1760179840970,-854.98839,0.0001539,2]
[390856187,1760179840979,-11217.23700133,0.000154,2]
[390856189,1760179840988,-501.39767496,0.000154,2]
[390856191,1760179840997,-854.98839,0.0001545,2]
[390856193,1760179841007,-398.15188537,0.00015521,2]
[390856195,1760179841017,-500.0,0.00015521,2]
[390856197,1760179841026,-404.41870018,0.00015521,2]
[390856199,1760179841037,-1000.0,0.00015521,2]
[390856201,1760179841047,-500.0,0.00015521,2]
[390856203,1760179841057,-1000.0,0.00015521,2]
[390856205,1760179841066,-1000.0,0.00015521,2]
[390856207,1760179841078,-1000.0,0.00015521,2]
[390856209,1760179841087,-1000.0,0.00015521,2]
[390856211,1760179841096,-1000.0,0.00015521,2]
[390856213,1760179841106,-1000.0,0.00015521,2]
[390856215,1760179841116,-1000.0,0.00015521,2]
[390856218,1760179841125,-354.47954189,0.00015521,2]
[390856220,1760179841135,-1000.0,0.00015521,2]
[390856222,1760179841145,-1132.10678544,0.00015521,2]
[390856224,1760179841155,-500.0,0.00015521,2]
[390856226,1760179841164,-500.0,0.00015545,2]
[390856228,1760179841173,-666.0,0.00015598,3]
[390856230,1760179841183,-968.123,0.00015614,2]
[390856232,1760179841193,-392.547,0.00015614,2]
[390856234,1760179841202,-255.0,0.0001563,2]
[390856236,1760179841212,-238.98666973,0.00015645,2]
[390856238,1760179841221,-1858.69,0.00015695,2]
[390856240,1760179841230,-500.0,0.00015819,2]
[390856242,1760179841240,-666.0,0.00015874,2]
[390856244,1760179841250,-150.0,0.00015875,2]
[390856246,1760179841260,-6190.46397218,0.00015875,2]
[390856248,1760179841270,-150.0,0.00015875,2]
[390856250,1760179841279,-589.78448211,0.00015875,2]
[390856252,1760179841289,-150.0,0.00015875,2]
[390856254,1760179841298,-6049.43986066,0.00015875,2]
[390856256,1760179841307,-150.0,0.00015875,2]
[390856258,1760179841317,-62822.57345272,0.00015875,2]
[390856261,1760179841327,-150.0,0.00015875,2]
[390856263,1760179841335,-8444.76561022,0.00015875,2]
[390856265,1760179841344,-484.46,0.00015877,2]
[390856267,1760179841353,-420.0,0.00015891,2]
[390856269,1760179841363,-289.0588502,0.00015915,2]
[390856271,1760179841372,-1109.85582509,0.00015935,2]
[390856273,1760179841381,-1119.58125509,0.00015935,2]
[390856275,1760179841390,-1036.20617341,0.00015935,2]
[390856277,1760179841400,-1022.13041058,0.00015935,2]
[390856279,1760179841410,-1010.95504317,0.00015935,2]
[390856281,1760179841419,-1100.22535181,0.00015935,2]
[390856283,1760179841429,-1680.0,0.00015962,2]
[390856285,1760179841438,-1000.0,0.00015999,2]
[390856287,1760179841448,-1214.4500913,0.00016068,2]
[390856289,1760179841458,-1500.0,0.00016068,2]
[390856291,1760179841468,-1500.0,0.00016068,2]
[390856293,1760179841478,-500.0,0.00016093,2]
[390856295,1760179841488,-2751.0,0.00016173,2]
[390856297,1760179841498,-150.0,0.0001619,2]
[390856299,1760179841508,-175.87,0.00016255,2]
[390856302,1760179841519,-204.0,0.00016329,2]
[390856304,1760179841528,-500.0,0.00016367,2]
[390856306,1760179841539,-1399.0,0.000164,2]
[390856308,1760179841549,-277.73860711,0.00016438,2]
[390856310,1760179841558,-10000.0,0.00016438,2]
[390856312,1760179841568,-1000.0,0.00016438,2]
[390856314,1760179841577,-300.0,0.00016438,2]
[390856316,1760179841586,-300.0,0.00016438,2]
[390856318,1760179841595,-300.0,0.00016438,2]
[390856320,1760179841604,-300.0,0.00016438,2]
[390856322,1760179841613,-300.0,0.00016438,2]
[390856324,1760179841623,-300.0,0.00016438,2]
[390856326,1760179841633,-300.0,0.00016438,2]
[390856328,1760179841643,-300.0,0.00016438,2]
[390856330,1760179841652,-300.0,0.00016438,2]
[390856332,1760179841661,-300.0,0.00016438,2]
[390856334,1760179841671,-300.0,0.00016438,2]
[390856336,1760179841681,-300.0,0.00016438,2]
[390856338,1760179841690,-300.0,0.00016438,2]
[390856340,1760179841699,-300.0,0.00016438,2]
[390856342,1760179841708,-300.0,0.00016438,2]
[390856344,1760179841717,-300.0,0.00016438,2]
[390856346,1760179841726,-300.0,0.00016438,2]
[390856348,1760179841736,-300.0,0.00016438,2]
[390856350,1760179841746,-300.0,0.00016438,2]
[390856352,1760179841755,-300.0,0.00016438,2]
[390856354,1760179841764,-340.138691,0.00016438,2]
[390856356,1760179841774,-155.0,0.00016499,2]
[390856358,1760179841784,-151.0,0.00016505,2]
[390856360,1760179841794,-1000.0,0.00016505,2]
[390856362,1760179841804,-214.38159764,0.00016505,2]
[390856364,1760179841813,-151.0,0.00016505,2]
[390856366,1760179841823,-1000.0,0.00016505,2]
[390856368,1760179841832,-199.00713578,0.00016505,2]
[390856370,1760179841841,-1000.0,0.00016505,2]
[390856372,1760179841851,-1000.0,0.00016505,2]
[390856374,1760179841860,-1000.0,0.00016505,2]
[390856376,1760179841869,-248.71531821,0.00016505,2]
[390856378,1760179841879,-1000.0,0.00016505,2]
[390856380,1760179841888,-1000.0,0.00016505,2]
[390856382,1760179841898,-1000.0,0.00016505,2]
[390856384,1760179841907,-646.65982734,0.00016505,2]
[390856386,1760179841916,-151.46424386,0.00016505,2]
[390856388,1760179841926,-322.6107,0.00016505,2]
[390856390,1760179841936,-168.0,0.00016546,2]
[390856392,1760179841945,-161.66668498,0.00016576,2]
[390856394,1760179841954,-169.357,0.00016589,2]
[390856396,1760179841964,-500.0,0.00016616,2]
[390856398,1760179841973,-500.0,0.00016616,2]
[390856400,1760179841982,-500.0,0.00016616,2]
[390856402,1760179841991,-500.0,0.00016616,2]
[390856404,1760179842001,-500.0,0.00016616,2]
[390856406,1760179842010,-500.0,0.00016616,2]
[390856408,1760179842019,-500.0,0.00016616,2]
[390856410,1760179842029,-500.0,0.00016616,2]
[390856412,1760179842037,-500.0,0.00016616,2]
[390856414,1760179842047,-779.0,0.00016616,2]
[390856416,1760179842056,-1130.4199269,0.00016616,2]
[390856418,1760179842066,-177.17561256,0.00016616,2]
[390856420,1760179842077,-500.0,0.00016641,2]
[390856422,1760179842087,-214.0,0.00016647,2]
[390856424,1760179842096,-717.26739895,0.0001665,2]
[390856426,1760179842106,-214.0,0.00016669,2]
[390856429,1760179842117,-214.0,0.00016671,2]
[390856431,1760179842127,-214.0,0.00016703,2]
[390856433,1760179842137,-214.0,0.00016753,2]
[390856435,1760179842146,-250.0,0.00016798,7]
[390856437,1760179842156,-168.0,0.00016808,2]
[390856439,1760179842165,-214.0,0.00016811,2]
[390856441,1760179842174,-3212.272,0.00016831,2]
[390856443,1760179842183,-433.0,0.00016834,2]
[390856445,1760179842193,-161.99,0.00016841,2]
[390856447,1760179842202,-5000.0,0.00016895,2]
[390856449,1760179842211,-300.0,0.00016896,2]
[390856451,1760179842220,-300.0,0.00016896,2]
[390856453,1760179842230,-300.0,0.00016896,2]
[390856455,1760179842239,-300.0,0.00016896,2]
[390856457,1760179842249,-300.0,0.00016896,2]
[390856459,1760179842258,-300.0,0.00016896,2]
[390856461,1760179842268,-300.0,0.00016896,2]
[390856463,1760179842277,-300.0,0.00016896,2]
[390856465,1760179842288,-666.0,0.00016896,2]
[390856467,1760179842297,-101305.3577472,0.00016897,2]
[390856469,1760179842306,-33080.8560979,0.00016897,2]
[390856471,1760179842315,-2042.3690468,0.00016897,2]
[390856473,1760179842324,-500.0,0.00016915,2]
[390856475,1760179842334,-214.0,0.00016929,2]
[390856477,1760179842343,-168.0,0.00016938,2]
[390856478,1760179842352,-681.49,0.00017,7]
[390856479,1760179842362,-250.0,0.00017,2]
[390856507,1760179842729,-475.23572958,0.00017,7]
[390856509,1760179842739,-214.0,0.0001702,2]
[390856511,1760179842751,-475.23572958,0.00017063,2]
[390856513,1760179842761,-2541.0764841,0.00017065,2]
[390856515,1760179842770,-2049.31233982,0.00017076,2]
[390856517,1760179842779,-200.0,0.00017112,2]
[390856519,1760179842790,-214.0,0.00017126,2]
[390856521,1760179842799,-500.0,0.00017189,2]
[390856523,1760179842808,-214.0,0.00017254,2]
[390856525,1760179842817,-214.0,0.00017264,2]
[390856527,1760179842826,-151.0,0.00017318,2]
[390856529,1760179842835,-788.0,0.00017321,2]
[390856531,1760179842844,-500.0,0.00017321,2]
[390856533,1760179842853,-500.0,0.00017321,2]
[390856535,1760179842862,-500.0,0.00017321,2]
[390856537,1760179842872,-500.0,0.00017321,2]
[390856539,1760179842881,-22604.280698,0.00017321,2]
[390856541,1760179842890,-7381.3367189,0.00017321,2]
[390856543,1760179842899,-455.7141325,0.00017321,2]
[390856545,1760179842908,-168.0,0.00017341,2]
[390856547,1760179842917,-587.0,0.000174,2]
[390856549,1760179842926,-250.0,0.00017433,2]
[390856551,1760179842935,-168.0,0.00017518,2]
[390856552,1760179842944,-566.9908028,0.00017527,2]
[390856554,1760179842954,-2351.0,0.00017558,2]
[390856556,1760179842963,-214.0,0.00017572,2]
[390856558,1760179842974,-214.0,0.00017595,2]
[390856560,1760179842983,-300.0,0.000176,2]
[390856562,1760179842991,-957.0,0.000176,2]
[390856564,1760179843000,-161.66668498,0.00017612,2]
[390856566,1760179843010,-733.99934468,0.00017613,2]
[390856568,1760179843019,-151.0,0.00017633,2]
[390856570,1760179843027,-168.0,0.00017683,2]
[390856573,1760179843038,-1000.0,0.000177,2]
[390856575,1760179843048,-214.0,0.00017763,2]
[390856577,1760179843057,-10000.0,0.00017808,4]
[390856579,1760179843066,-174.10600951,0.0001785,2]
[390856581,1760179843078,-341.5687233,0.00017855,7]
[390856583,1760179843088,-257.91778498,0.00017874,2]
[390856585,1760179843097,-334.5472959,0.00017874,2]
[390856586,1760179843107,-518.23690777,0.000179,2]
[390856590,1760179843117,-268.49,0.0001796,2]
[390856593,1760179843126,-151.0,0.00017967,2]
[390856596,1760179843135,-15622.13671189,0.0001798,2]
[390856599,1760179843146,-155.0,0.00017999,2]
[390856601,1760179843156,-517.02728,0.00018,2]
[390856603,1760179843167,-34947.27837454,0.00018,2]
[390856605,1760179843176,-10125.55239253,0.00018,2]
[390856607,1760179843186,-214.0,0.00018023,2]
[390856609,1760179843195,-151.0,0.00018032,2]
[390856611,1760179843205,-214.0,0.00018052,2]
[390856613,1760179843214,-1000.0,0.00018082,2]
[390856615,1760179843224,-214.0,0.00018093,2]
[390856617,1760179843233,-1757.19568659,0.000181,2]
[390856619,1760179843242,-736.0,0.00018126,2]
[390856621,1760179843251,-1103.48844664,0.0001813,2]
[390856623,1760179843260,-1001.63252948,0.0001813,2]
[390856625,1760179843270,-1112.28370679,0.0001813,2]
[390856627,1760179843279,-1119.47846846,0.0001813,2]
[390856629,1760179843291,-1001.21011447,0.0001813,2]
[390856631,1760179843300,-1144.05428298,0.0001813,2]
[390856633,1760179843310,-1056.1763809,0.0001813,2]
[390856635,1760179843321,-1024.25470393,0.0001813,2]
[390856636,1760179843332,-1066.32021623,0.0001813,2]
[390856638,1760179843342,-1050.42330955,0.0001813,2]
[390856640,1760179843352,-1068.41082963,0.0001813,2]
[390856642,1760179843363,-1110.82969642,0.0001813,2]
[390856644,1760179843373,-1106.93907147,0.0001813,2]
[390856647,1760179843383,-1007.39260982,0.0001813,2]
[390856649,1760179843394,-1085.71476823,0.0001813,2]
[390856652,1760179843403,-1103.15660472,0.0001813,2]
[390856653,1760179843413,-1447.73021291,0.0001813,2]
[390856655,1760179843422,-948.38,0.0001817,2]
[390856657,1760179843432,-10125.55239253,0.000182,2]
[390856659,1760179843440,-1266.0,0.00018213,2]
[390856661,1760179843450,-740.0,0.00018213,2]
[390856663,1760179843459,-2048.0,0.00018213,2]
[390856665,1760179843468,-3405.0,0.00018213,2]
[390856667,1760179843477,-571.0,0.00018213,2]
[390856669,1760179843486,-1587.0,0.00018213,2]
[390856672,1760179843496,-604.0,0.00018213,2]
[390856673,1760179843505,-1309.0,0.00018213,2]
[390856676,1760179843515,-816.0,0.00018213,2]
[390856678,1760179843525,-6439.0,0.00018213,2]
[390856680,1760179843534,-4120.0,0.00018213,2]
[390856682,1760179843547,-622.0,0.00018213,2]
[390856684,1760179843556,-150.0,0.00018246,2]
[390856686,1760179843566,-150.0,0.00018246,2]
[390856688,1760179843576,-150.0,0.00018246,2]
[390856690,1760179843586,-150.0,0.00018246,2]
[390856692,1760179843596,-150.0,0.00018246,2]
[390856694,1760179843606,-214.0,0.00018257,2]
[390856696,1760179843615,-214.0,0.0001828,2]
[390856698,1760179843625,-160.25661032,0.0001832,2]
[390856699,1760179843637,-203.82493078,0.0001832,2]
[390856701,1760179843646,-500.0,0.0001832,2]
[390856704,1760179843656,-160.28585005,0.0001832,2]
[390856706,1760179843665,-160.22135125,0.0001832,2]
[390856708,1760179843674,-160.24842176,0.0001832,2]
[390856709,1760179843683,-160.22396816,0.00018387,2]
[390856711,1760179843692,-414.99072918,0.00018387,2]
[390856713,1760179843701,-500.0,0.00018387,2]
[390856715,1760179843711,-150.0,0.00018388,2]
[390856717,1760179843720,-150.0,0.00018388,2]
[390856719,1760179843729,-250.56704561,0.00018388,2]
[390856721,1760179843738,-150.0,0.00018388,2]
[390856723,1760179843748,-150.0,0.00018388,2]
[390856726,1760179843758,-150.0,0.00018388,2]
[390856728,1760179843767,-500.0,0.00018388,2]
[390856730,1760179843776,-150.0,0.00018388,2]
[390856732,1760179843785,-150.0,0.00018388,2]
[390856734,1760179843796,-150.0,0.00018388,2]
[390856736,1760179843805,-150.0,0.00018388,2]
[390856737,1760179843814,-1101.04,0.00018388,2]
[390856739,1760179843830,-150.0,0.00018388,2]
[390856741,1760179843839,-150.0,0.00018388,2]
[390856743,1760179843848,-150.0,0.00018388,2]
[390856745,1760179843859,-150.0,0.00018388,2]
[390856747,1760179843869,-150.0,0.00018388,2]
[390856750,1760179843879,-150.0,0.00018388,2]
[390856752,1760179843887,-150.0,0.00018388,2]
[390856754,1760179843897,-150.0,0.00018388,2]
[390856756,1760179843906,-150.0,0.00018388,2]
[390856758,1760179843916,-448.0,0.00018388,2]
[390856759,1760179843925,-150.0,0.00018388,2]
[390856762,1760179843935,-500.0,0.00018388,2]
[390856764,1760179843944,-150.0,0.00018388,2]
[390856766,1760179843954,-500.0,0.00018388,2]
[390856767,1760179843963,-150.0,0.00018388,2]
[390856770,1760179843973,-1098.0,0.00018388,2]
[390856772,1760179843982,-500.0,0.00018388,2]
[390856774,1760179843992,-150.0,0.00018388,2]
[390856775,1760179844003,-150.0,0.00018388,2]
[390856778,1760179844012,-500.0,0.00018388,2]
[390856780,1760179844024,-500.0,0.00018388,2]
[390856782,1760179844033,-500.0,0.00018388,2]
[390856784,1760179844045,-528.0,0.00018388,2]
[390856786,1760179844054,-500.0,0.00018388,2]
[390856788,1760179844063,-500.0,0.00018388,2]
[390856790,1760179844080,-1261.0,0.00018388,2]
[390856792,1760179844093,-500.0,0.00018388,2]
[390856794,1760179844103,-150.0,0.00018388,2]
[390856796,1760179844112,-150.0,0.00018388,2]
[390856798,1760179844123,-150.0,0.00018388,2]
[390856800,1760179844132,-150.0,0.00018388,2]
[390856802,1760179844141,-150.0,0.00018388,2]
[390856804,1760179844150,-500.0,0.00018388,2]
[390856806,1760179844162,-15469.0,0.000184,2]
[390856808,1760179844170,-10125.55239253,0.000184,2]
[390856810,1760179844179,-151.0,0.0001843,2]
[390856812,1760179844189,-150.0,0.00018443,2]
[390856814,1760179844198,-500.0,0.00018443,2]
[390856816,1760179844207,-150.0,0.00018443,2]
[390856818,1760179844216,-152.95865123,0.00018443,2]
[390856820,1760179844225,-200.0,0.00018443,2]
[390856822,1760179844235,-150.0,0.00018443,2]
[390856825,1760179844246,-448.0,0.00018443,2]
[390856827,1760179844255,-500.0,0.00018443,2]
[390856829,1760179844265,-500.0,0.00018443,2]
[390856831,1760179844274,-1098.0,0.00018443,2]
[390856833,1760179844284,-500.0,0.00018443,2]
[390856835,1760179844296,-150.0,0.00018443,2]
[390856837,1760179844307,-500.0,0.00018443,2]
[390856839,1760179844316,-500.0,0.00018443,2]
[390856841,1760179844325,-500.0,0.00018443,2]
[390856843,1760179844335,-528.0,0.00018443,2]
[390856844,1760179844344,-500.0,0.00018443,2]
[390856846,1760179844354,-500.0,0.00018443,2]
[390856849,1760179844363,-1261.0,0.00018443,2]
[390856851,1760179844372,-500.0,0.00018443,2]
[390856852,1760179844382,-150.0,0.00018443,2]
[390856854,1760179844391,-500.0,0.00018443,2]
[390856856,1760179844400,-500.0,0.00018473,2]
[390856858,1760179844410,-326.49586785,0.00018473,2]
[390856860,1760179844419,-600.0,0.00018498,2]
[390856862,1760179844428,-150.0,0.00018498,2]
[390856864,1760179844438,-261.72434379,0.00018498,2]
[390856866,1760179844447,-448.0,0.00018498,2]
[390856868,1760179844455,-500.0,0.00018498,2]
[390856871,1760179844465,-500.0,0.00018498,2]
[390856873,1760179844474,-1098.0,0.00018498,2]
[390856874,1760179844483,-500.0,0.00018498,2]
[390856877,1760179844493,-200.0,0.00018498,2]
[390856879,1760179844502,-500.0,0.00018498,2]
[390856881,1760179844513,-500.0,0.00018498,2]
[390856883,1760179844522,-500.0,0.00018498,2]
[390856885,1760179844531,-528.0,0.00018498,2]
[390856887,1760179844542,-500.0,0.00018498,2]
[390856889,1760179844551,-500.0,0.00018498,2]
[390856891,1760179844560,-1261.0,0.00018498,2]
[390856893,1760179844570,-573.97473461,0.00018498,2]
[390856895,1760179844580,-200.0,0.00018498,2]
[390856897,1760179844589,-500.0,0.00018498,2]
[390856899,1760179844599,-300.0,0.00018499,2]
[390856901,1760179844608,-300.0,0.00018499,2]
[390856903,1760179844617,-300.0,0.00018499,2]
[390856904,1760179844627,-300.0,0.00018499,2]
[390856906,1760179844636,-300.0,0.00018499,2]
[390856908,1760179844646,-305.86832911,0.00018499,2]
[390856910,1760179844655,-159992.55518473,0.000185,2]
[390856912,1760179844664,-151.0,0.000185,2]
[390856914,1760179844672,-150.0,0.000185,2]
[390856916,1760179844681,-6727.48076025,0.000185,2]
[390856918,1760179844690,-1000.0,0.000185,2]
[390856919,1760179844700,-151.0,0.000185,2]
[390856921,1760179844709,-10125.55239253,0.000185,2]
[390856923,1760179844718,-151.0,0.000185,2]
[390856925,1760179844727,-151.0,0.000185,2]
[390856927,1760179844736,-151.0,0.000185,2]
[390856929,1760179844746,-151.0,0.000185,2]
[390856931,1760179844755,-299.078548,0.000185,2]
[390856933,1760179844764,-151.0,0.000185,2]
[390856935,1760179844773,-151.0,0.000185,2]
[390856937,1760179844781,-151.0,0.000185,2]
[390856939,1760179844792,-151.0,0.000185,2]
[390856941,1760179844801,-151.0,0.000185,2]
[390856943,1760179844810,-152.475903,0.000185,2]
[390856945,1760179844820,-151.0,0.000185,2]
[390856946,1760179844829,-151.0,0.000185,2]
[390856948,1760179844838,-151.0,0.000185,2]
[390856950,1760179844847,-185.286349,0.000185,2]
[390856952,1760179844855,-151.0,0.000185,2]
[390856954,1760179844864,-151.0,0.000185,2]
[390856956,1760179844873,-248.811318,0.000185,2]
[390856958,1760179844882,-151.0,0.000185,2]
[390856960,1760179844892,-151.0,0.000185,2]
[390856961,1760179844901,-151.0,0.000185,2]
[390856963,1760179844910,-151.410703,0.000185,2]
[390856965,1760179844920,-151.0,0.000185,2]
[390856967,1760179844929,-151.0,0.000185,2]
[390856969,1760179844938,-151.0,0.000185,2]
[390856971,1760179844947,-162.017554,0.000185,2]
[390856973,1760179844955,-151.0,0.000185,2]
[390856975,1760179844964,-151.0,0.000185,2]
[390856976,1760179844973,-151.0,0.000185,2]
[390856978,1760179844982,-151.0,0.000185,2]
[390856980,1760179844991,-151.0,0.000185,2]
[390856982,1760179845000,-151.0,0.000185,2]
[390856984,1760179845009,-151.0,0.000185,2]
[390856986,1760179845020,-199.942925,0.000185,2]
[390856988,1760179845029,-151.0,0.000185,2]
[390856990,1760179845038,-162.437847,0.000185,2]
[390856992,1760179845048,-151.0,0.000185,2]
[390856994,1760179845057,-151.0,0.000185,2]
[390856996,1760179845067,-151.0,0.000185,2]
[390856997,1760179845078,-151.0,0.000185,2]
[390856999,1760179845088,-151.0,0.000185,2]
[390857001,1760179845097,-151.0,0.000185,2]
[390857003,1760179845106,-243.848007,0.000185,2]
[390857005,1760179845115,-151.0,0.000185,2]
[390857007,1760179845124,-151.0,0.000185,2]
[390857009,1760179845133,-151.0,0.000185,2]
[390857010,1760179845142,-151.0,0.000185,2]
[390857012,1760179845151,-151.0,0.000185,2]
[390857014,1760179845162,-151.0,0.000185,2]
[390857016,1760179845171,-151.0,0.000185,2]
[390857018,1760179845180,-151.0,0.000185,2]
[390857020,1760179845189,-242.86523,0.000185,2]
[390857022,1760179845198,-161.7,0.000185,2]
[390857024,1760179845207,-161.7,0.000185,2]
[390857026,1760179845216,-161.7,0.000185,2]
[390857028,1760179845226,-161.7,0.000185,2]
[390857030,1760179845237,-151.0,0.000185,2]
[390857032,1760179845247,-151.0,0.000185,2]
[390857034,1760179845257,-151.0,0.000185,2]
[390857036,1760179845266,-151.0,0.000185,2]
[390857038,1760179845275,-151.0,0.000185,2]
[390857039,1760179845283,-151.0,0.000185,2]
[390857041,1760179845295,-151.0,0.000185,2]
[390857043,1760179845304,-151.0,0.000185,2]
[390857045,1760179845313,-151.0,0.000185,2]
[390857047,1760179845322,-290.383658,0.000185,2]
[390857049,1760179845332,-290.383658,0.000185,2]
[390857051,1760179845341,-151.0,0.000185,2]
[390857053,1760179845350,-290.383658,0.000185,2]
[390857055,1760179845360,-151.0,0.000185,2]
[390857056,1760179845369,-290.383658,0.000185,2]
[390857058,1760179845378,-151.0,0.000185,2]
[390857060,1760179845388,-151.0,0.000185,2]
[390857062,1760179845396,-151.0,0.000185,2]
[390857064,1760179845406,-215.976873,0.000185,2]
[390857065,1760179845415,-151.0,0.000185,2]
[390857067,1760179845424,-151.0,0.000185,2]
[390857069,1760179845434,-151.0,0.000185,2]
[390857071,1760179845443,-151.0,0.000185,2]
[390857073,1760179845452,-151.0,0.000185,2]
[390857075,1760179845461,-151.0,0.000185,2]
[390857077,1760179845470,-151.0,0.000185,2]
[390857079,1760179845480,-151.0,0.000185,2]
[390857080,1760179845489,-151.0,0.000185,2]
[390857082,1760179845499,-1238.955333,0.000185,2]
[390857084,1760179845509,-1238.955333,0.000185,2]
[390857087,1760179845519,-1238.955333,0.000185,2]
[390857088,1760179845529,-1238.955333,0.000185,2]
[390857090,1760179845538,-881.341442,0.000185,2]
[390857092,1760179845549,-406.172221,0.000185,2]
[390857094,1760179845558,-881.341442,0.000185,2]
[390857096,1760179845568,-406.172221,0.000185,2]
[390857098,1760179845577,-881.341442,0.000185,2]
[390857100,1760179845587,-406.172221,0.000185,2]
[390857102,1760179845596,-406.172221,0.000185,2]
[390857103,1760179845605,-151.0,0.000185,2]
[390857105,1760179845615,-881.341442,0.000185,2]
[390857107,1760179845624,-151.0,0.000185,2]
[390857109,1760179845637,-151.0,0.000185,2]
[390857111,1760179845647,-151.0,0.000185,2]
[390857113,1760179845656,-151.0,0.000185,2]
[390857115,1760179845665,-151.0,0.000185,2]
[390857117,1760179845674,-151.0,0.000185,2]
[390857119,1760179845683,-370.418385,0.000185,2]
[390857121,1760179845692,-151.0,0.000185,2]
[390857123,1760179845701,-370.418385,0.000185,2]
[390857125,1760179845711,-370.418385,0.000185,2]
[390857127,1760179845720,-370.418385,0.000185,2]
[390857128,1760179845729,-151.0,0.000185,2]
[390857130,1760179845738,-151.0,0.000185,2]
[390857132,1760179845747,-288.480814,0.000185,2]
[390857134,1760179845756,-151.0,0.000185,2]
[390857136,1760179845765,-288.480814,0.000185,2]
[390857138,1760179845774,-288.480814,0.000185,2]
[390857140,1760179845783,-288.480814,0.000185,2]
[390857142,1760179845794,-242.308826,0.000185,2]
[390857144,1760179845804,-242.308826,0.000185,2]
[390857146,1760179845813,-242.308826,0.000185,2]
[390857148,1760179845822,-151.0,0.000185,2]
[390857150,1760179845831,-151.0,0.000185,2]
[390857152,1760179845840,-242.308826,0.000185,2]
[390857153,1760179845849,-151.0,0.000185,2]
[390857155,1760179845858,-151.0,0.000185,2]
[390857157,1760179845867,-151.0,0.000185,2]
[390857159,1760179845876,-151.0,0.000185,2]
[390857161,1760179845885,-151.0,0.000185,2]
[390857163,1760179845894,-151.0,0.000185,2]
[390857165,1760179845903,-151.0,0.000185,2]
[390857167,1760179845912,-151.0,0.000185,2]
[390857169,1760179845922,-151.0,0.000185,2]
[390857171,1760179845931,-151.0,0.000185,2]
[390857173,1760179845940,-979.58055,0.000185,2]
[390857175,1760179845949,-979.58055,0.000185,2]
[390857177,1760179845959,-979.58055,0.000185,2]
[390857178,1760179845968,-979.58055,0.000185,2]
[390857180,1760179845977,-151.0,0.000185,2]
[390857182,1760179845986,-151.0,0.000185,2]
[390857184,1760179845995,-151.0,0.000185,2]
[390857186,1760179846005,-151.0,0.000185,2]
[390857188,1760179846014,-263.604445,0.000185,2]
[390857190,1760179846024,-151.0,0.000185,2]
[390857192,1760179846033,-259.160155,0.000185,2]
[390857194,1760179846042,-263.604445,0.000185,2]
[390857196,1760179846052,-263.604445,0.000185,2]
[390857198,1760179846061,-263.604445,0.000185,2]